[Event "9. Korbacher Open 2017"]
[Site "Korbach"]
[Date "2017.10.20"]
[Round "3"]
[White "Rehbein, Ullrich"]
[Black "Wuestehube, Harry"]
[Result "0-1"]
[ECO "A48"]
[WhiteElo "1778"]
[BlackElo "1906"]
[Annotator "NA RC"]
[PlyCount "59"]
[EventDate "2017.??.??"]
[EventType "swiss"]
[EventCountry "GER"]
[SourceTitle "playchess.com"]
[Source "ChessBase"]
[SourceQuality "1"]
[TimeControl "40/5400+30:1800+30"]

{[%evp 8,59,31,0,32767,32767,32767,32767,32767,32767,10,6,20,0,0,-14,-17,-14,-5,-11,0,0,10,-6,0,3,28,-20,-15,32767,32767,-101,-102,-175,-183,-172,-166,-585,-602,-701,-566,-654,-487,-466,-434,-875,32767,32767,32767,32767,-439,-814,-827,-1026]} 1. d4 {[%emt 0:00:37]} Nf6 {[%emt 0:00:08]} 2. Nf3 {[%emt 0:00:03]} g6 {[%emt 0:00:11]} 3. Bf4 {[%emt 0:00:17]} Bg7 {[%emt 0:00:15]} 4. h3 {[%emt 0:00:32]} d6 {[%emt 0:00:11] LiveBook: 154 Partien} 5. e3 {[%emt 0:00:17]} O-O {[%emt 0:00:16]} 6. Be2 {[%emt 0:00:14]} Nbd7 {[%emt 0:00:28]} 7. O-O {[%emt 0:00:16]} Re8 {[%emt 0:02:24]} 8. c3 {[%emt 0:02:49]} e6 {[%emt 0:09:08]} 9. Nbd2 {[%emt 0:00:57]} b6 {[%emt 0:05:41]} 10. Re1 {[%emt 0:05:23]} Bb7 {[%emt 0:00:18]} 11. Rc1 {[%emt 0:01:04]} Qe7 {[%emt 0:03:56]} 12. Qc2 {[%emt 0:07:02]} e5 {[%emt 0:05:03]} 13. Bg5 {[%emt 0:01:40]} e4 {[%emt 0:06:10]} 14. Nh2 {[%emt 0:00:36]} h6 {[%emt 0:00:28]} 15. Bh4 {[%emt 0:01:20]} Qe6 {[%emt 0:03:31]} 16. c4 {[%emt 0:05:27]} Nh7 {[%emt 0:12:19]} 17. Bg3 {[%emt 0:06:00]} c5 {[%emt 0:05:56]} 18. Red1 {[%emt 0:04:28]} cxd4 {[%emt 0:05:35]} 19. exd4 {[%emt 0:07:14] [#]} e3 $1 {[%emt 0:03:14]} ({Doch nicht} 19... Bxd4 $6 20. Nb3 $11) 20. Nb3 {[%emt 0:05:41]} (20. Ndf3 $17 {was called for.}) 20... exf2+ {[%emt 0:01:38]} 21. Kf1 {[%emt 0:00:01] [#]} Bxg2+ $1 {[%emt 0:09:15]} 22. Kxf2 $2 {[%emt 0:02:23]} (22. Kxg2 {nothing else works.} Qxe2 23. Bxf2) 22... Bxh3 {[%emt 0:03:41]} 23. Qd2 {[%emt 0:06:57]} Ng5 {[%emt 0:01:46]} 24. Bd3 {[%emt 0:02:24]} Ne4+ {[%emt 0:03:11]} 25. Bxe4 {[%emt 0:00:29]} Qxe4 {[%emt 0:00:08]} 26. Nf3 {[%emt 0:02:18]} (26. Kg1 $142) 26... Bg4 {[%emt 0:01:01]} 27. Rc3 {[%emt 0:03:24]} Bf8 {[%emt 0:01:52]} 28. Re1 {[%emt 0:01:49]} Qf5 {[%emt 0:00:20]} 29. Rh1 {[%emt 0:02:53]} (29. Kg1 $142) 29... Nf6 {[%emt 0:01:19]} 30. Re1 $19 0-1

[Event "9. Korbacher Open 2017"]
[Site "Korbach"]
[Date "2017.10.20"]
[Round "3"]
[White "Bayer, Martin"]
[Black "Kirchner, Markus"]
[Result "1-0"]
[ECO "C02"]
[WhiteElo "1732"]
[BlackElo "1884"]
[Annotator "NA RC"]
[PlyCount "25"]
[EventDate "2017.??.??"]
[EventType "swiss"]
[EventCountry "GER"]
[SourceTitle "playchess.com"]
[Source "ChessBase"]
[SourceQuality "1"]
[TimeControl "40/5400+30:1800+30"]

{[%evp 8,25,0,0,20,3,31,32767,7,0,60,54,64,41,50,25,328,328,337,361]} 1. e4 {[%emt 0:00:00]} e6 {[%emt 0:00:21]} 2. d4 {[%emt 0:00:00]} d5 {[%emt 0:00:06]} 3. e5 {[%emt 0:01:15]} c5 {[%emt 0:00:17]} 4. c3 {[%emt 0:00:06]} Nc6 {[%emt 0:00:08]} 5. Nf3 {[%emt 0:00:06]} Bd7 {[%emt 0:00:36]} 6. a3 {[%emt 0:00:27]} a5 {[%emt 0:00:42]} 7. Be2 {[%emt 0:01:07]} Qb6 {[%emt 0:00:55] LiveBook: 32 Games} 8. O-O {[%emt 0:02:28]} cxd4 {[%emt 0:00:13]} ({Lieber} 8... a4 $11) 9. cxd4 {[%emt 0:00:15]} Nge7 {[%emt 0:00:29]} 10. Nc3 {[%emt 0:02:30]} Nf5 {[%emt 0:02:44]} 11. Nb5 {[%emt 0:02:43]} Nxe5 $2 {[%emt 0:01:38]} (11... h5 $14) 12. dxe5 {[%emt 0:01:11]} Bxb5 {[%emt 0:00:25] [#]} 13. Qb3 $18 {[%emt 0:00:16]} 1-0

[Event "9. Korbacher Open 2017"]
[Site "Korbach"]
[Date "2017.10.20"]
[Round "3"]
[White "Sakhra, Roman"]
[Black "Basovskiy, Jana"]
[Result "1-0"]
[ECO "D02"]
[WhiteElo "1489"]
[BlackElo "1825"]
[Annotator "NA RC"]
[PlyCount "81"]
[EventDate "2017.??.??"]
[EventType "swiss"]
[EventCountry "GER"]
[SourceTitle "playchess.com"]
[Source "ChessBase"]
[SourceQuality "1"]
[TimeControl "40/5400+30:1800+30"]

{[%evp 8,75,28,10,14,9,9,32767,32767,20,2,25,32767,32767,32767,-4,9,4,11,9,6,-2,89,99,99,25,131,132,158,150,183,149,152,185,257,32767,32767,268,272,162,234,155,297,322,385,332,452,586,1083,466,522,691,29987,2098,1569,853,845,1166,895,1033,1056,1251,985,1164,1222,1393,1306,1259,1530,5106]} 1. d4 {[%emt 0:00:00]} d5 {[%emt 0:00:04]} 2. Bf4 {[%emt 0:00:00]} Nf6 {[%emt 0:00:14]} 3. Nf3 {[%emt 0:00:00]} e6 {[%emt 0:00:05]} 4. e3 {[%emt 0:00:00]} Be7 {[%emt 0:00:28] LiveBook: 140 Games} 5. Bd3 {[%emt 0:00:01]} O-O {[%emt 0:00:15]} 6. Nbd2 {[%emt 0:00:09]} b6 {[%emt 0:00:35]} 7. O-O {[%emt 0:00:53]} Bb7 {[%emt 0:00:07]} 8. Ne5 {[%emt 0:00:14]} c5 {[%emt 0:00:27]} 9. c3 {[%emt 0:00:06]} Nbd7 {[%emt 0:01:30]} 10. Ndf3 {[%emt 0:00:13] D02: 1 d4 d5 2 Nf3 sidelines, including 2...Nf6 3 g3 and 2...Nf6 3 Bf4} (10. Qf3 a6 11. Rad1 b5 12. Qh3 Re8 13. Ndf3 Ne4 14. Nxd7 Qxd7 15. dxc5 Qc8 16. Bd6 Bxd6 17. cxd6 Nf6 18. Ne5 Rd8 19. Ng4 Rxd6 20. Nxf6+ {1-0 (20) Hoang,T (2464)-Ptacnikova,L (2281) Istanbul 2012}) 10... Rc8 {[%emt 0:03:08]} 11. Nxd7 {[%emt 0:05:54]} Qxd7 $146 {[%emt 0:01:58]} ({Predecessor:} 11... Nxd7 12. Ne5 Nxe5 13. Bxe5 Bf6 14. Bxf6 Qxf6 {0-1 (28) Da Silva,J (1703)-Gomes Filho,C (1982) Fortaleza 2017}) 12. Ne5 {[%emt 0:00:07]} Qd8 {[%emt 0:00:08]} 13. Qf3 {[%emt 0:06:11]} Ne4 {[%emt 0:03:37]} 14. Qg4 {[%emt 0:07:32]} g6 {[%emt 0:04:14]} (14... f5 $11 15. Qh3 g5) 15. Bh6 {[%emt 0:13:43]} Re8 {[%emt 0:00:21]} 16. f3 {[%emt 0:09:01]} (16. Bb5 $16) 16... Nf6 {[%emt 0:00:17] [#]} (16... f5 $1 $11 17. Qh3 Nd6) 17. Qf4 $1 {[%emt 0:04:16]} c4 {[%emt 0:09:06]} 18. Bc2 {[%emt 0:01:39]} b5 {[%emt 0:00:37]} 19. a3 {[%emt 0:00:10]} Bd6 {[%emt 0:05:29]} 20. g4 {[%emt 0:02:33]} Rc7 {[%emt 0:02:19]} (20... Qe7 {war einen Versuch wert.}) 21. h4 {[%emt 0:06:24]} Bf8 {[%emt 0:07:42]} 22. Bg5 {[%emt 0:07:22]} Bg7 {[%emt 0:01:19]} 23. Kf2 {[%emt 0:07:18]} (23. Kg2 $142) 23... Qe7 {[%emt 0:11:06]} (23... Ne4+ $16 {is a better defense.} 24. Bxe4 (24. fxe4 f6 $16) 24... f6) 24. Rh1 {[%emt 0:00:40]} (24. Kg2 $18) 24... Rf8 {[%emt 0:01:33]} (24... Ne4+ $142 25. Bxe4 f6) 25. Rh3 {[%emt 0:05:50]} Ba8 {[%emt 0:02:03]} 26. Rah1 {[%emt 0:00:16]} a5 {[%emt 0:00:44]} (26... Ne4+ $142 27. Bxe4 f6) 27. h5 {[%emt 0:07:45]} Qd8 {[%emt 0:00:51]} 28. Bh6 {[%emt 0:01:44]} (28. hxg6 $142 fxg6 29. Qh2) 28... Bxh6 {[%emt 0:03:13]} 29. Qxh6 {[%emt 0:00:08]} Qe8 {[%emt 0:00:46]} 30. hxg6 {[%emt 0:03:01]} (30. g5 $142 Ne4+ 31. fxe4 f6 32. gxf6 Rxf6+ 33. Ke1 Rg7 34. exd5 Bxd5 35. hxg6) 30... fxg6 {[%emt 0:00:16]} 31. Ke2 {[%emt 0:05:33]} Rg7 {[%emt 0:03:22]} 32. g5 {[%emt 0:02:29]} Nh5 {[%emt 0:02:42] [#]} 33. Bxg6 $1 {[%emt 0:02:57]} hxg6 {[%emt 0:02:02]} 34. Rxh5 $1 {[%emt 0:00:08]} gxh5 {[%emt 0:00:27]} 35. Rxh5 {[%emt 0:00:04]} Qxh5 {[%emt 0:03:31]} 36. Qxh5 {[%emt 0:00:04]} Rh7 {[%emt 0:02:35]} 37. Qg6+ {[%emt 0:00:05]} Kh8 {[%emt 0:00:09]} 38. Qxe6 $18 {[%emt 0:00:28]} Kg7 {[%emt 0:01:22]} 39. f4 {[%emt 0:01:50]} Rh2+ {[%emt 0:01:36]} 40. Kf3 {[%emt 0:00:54]} Rh7 {[%emt 0:30:53]} 41. f5 {[%emt 0:31:03]} 1-0

[Event "9. Korbacher Open 2017"]
[Site "Korbach"]
[Date "2017.10.20"]
[Round "3"]
[White "Hildebrand, Georg"]
[Black "Goetz, Jan"]
[Result "1/2-1/2"]
[ECO "A20"]
[WhiteElo "1477"]
[BlackElo "1890"]
[Annotator "NA RC"]
[PlyCount "84"]
[EventDate "2017.??.??"]
[EventType "swiss"]
[EventCountry "GER"]
[SourceTitle "playchess.com"]
[Source "ChessBase"]
[SourceQuality "1"]
[TimeControl "40/5400+30:1800+30"]

{[%evp 21,84,0,27,-37,-17,-29,-26,-53,-44,-127,-81,-147,-152,-152,-147,-270,-248,-324,-317,32767,32767,-422,-413,-430,-449,-452,-456,-449,-462,-447,-460,-448,-489,-463,-458,-483,-517,-477,-520,-576,-612,-606,-679,-665,-684,-723,-776,-1014,-988,-1516,-5393,-5950,-2078,-5513,-29970,-12838,-29987,-6227,-29986,-29986,-29988,-29986,-29989,-29989,-29990]} 1. c4 {[%emt 0:02:57]} e5 {[%emt 0:00:02]} 2. a3 {[%emt 0:01:05]} c5 {[%emt 0:00:01]} 3. Nc3 {[%emt 0:00:39]} Nc6 {[%emt 0:00:01]} 4. g3 {[%emt 0:00:54]} g6 {[%emt 0:00:01]} 5. Bg2 {[%emt 0:00:13]} Bg7 {[%emt 0:00:01]} 6. Nf3 {[%emt 0:00:17]} Nge7 {[%emt 0:00:02]} 7. O-O {[%emt 0:00:29]} O-O {[%emt 0:00:02]} 8. d3 {[%emt 0:01:45]} d6 {[%emt 0:00:01]} 9. Rb1 {[%emt 0:02:45]} a5 {[%emt 0:01:29]} 10. e3 {[%emt 0:01:01]} Be6 {[%emt 0:01:08] A37: Symmetrical English vs ...g6: 4 Bg2 Bg7 5 Nf3} (10... h6 11. Nd5 Nxd5 12. cxd5 Ne7 13. Nd2 a4 14. b4 cxb4 15. Rxb4 b5 16. Nb1 Bd7 17. e4 Rc8 18. Be3 {0-1 (37) Koteski,D (2231)-Colovic,A (2500) Struga 2014}) 11. Nd2 $146 {[%emt 0:02:57]} ({Predecessor:} 11. Bd2 f5 12. Ng5 Bc8 13. Nd5 h6 14. Nh3 g5 15. f4 exf4 16. gxf4 g4 17. Nf2 Ng6 18. b4 axb4 19. axb4 {1-0 (46) Kessler,L (1992)-Benzetsel,E (1744) Kemer 2009}) 11... d5 {[%emt 0:00:36]} 12. b3 {[%emt 0:02:04]} ({Better is} 12. Qb3 $14 dxc4 13. dxc4) 12... b6 {[%emt 0:08:32]} 13. Bb2 {[%emt 0:09:26]} Rb8 {[%emt 0:03:11]} 14. Ne2 {[%emt 0:07:53]} Qd7 {[%emt 0:01:45]} 15. Kh1 {[%emt 0:05:43]} (15. Nf3 $15) 15... Rbd8 {[%emt 0:01:57]} 16. d4 {[%emt 0:05:42]} (16. Nc3 $142) 16... exd4 {[%emt 0:05:40]} 17. exd4 {[%emt 0:02:43]} cxd4 {[%emt 0:00:02]} 18. Nf3 {[%emt 0:05:00]} (18. Nf4 $17 {was called for.}) 18... Bf5 {[%emt 0:08:07]} 19. Ra1 {[%emt 0:02:03]} d3 {[%emt 0:00:57]} 20. Bxg7 {[%emt 0:12:21]} dxe2 {[%emt 0:00:25]} 21. Qxe2 {[%emt 0:01:15]} Kxg7 {[%emt 0:00:01]} 22. Rfd1 {[%emt 0:06:02]} Qe6 {[%emt 0:01:30]} 23. Qb2+ {[%emt 0:04:05]} Qf6 {[%emt 0:01:51]} 24. Qxf6+ Kxf6 25. cxd5 Rxd5 26. Rxd5 {[%emt 0:11:49]} Nxd5 {[%emt 0:00:32]} 27. Rc1 {[%emt 0:00:48]} Nce7 {[%emt 0:01:50]} 28. h4 {[%emt 0:01:35]} Rc8 {[%emt 0:00:30]} 29. Rxc8 {[%emt 0:00:57]} Bxc8 {[%emt 0:00:02]} 30. Ng5 {[%emt 0:00:42]} h6 {[%emt 0:00:33]} 31. Ne4+ {[%emt 0:00:40]} Ke5 {[%emt 0:01:14]} 32. f4+ {[%emt 0:02:12]} Kd4 {[%emt 0:00:02]} 33. Nd6 {[%emt 0:01:22]} Be6 {[%emt 0:00:16]} 34. Nc4 {[%emt 0:03:28]} Kc3 {[%emt 0:00:43]} 35. Bxd5 {[%emt 0:00:49]} Bxd5+ {[%emt 0:00:01]} 36. Kh2 {[%emt 0:01:04]} Bxc4 {[%emt 0:00:01]} 37. bxc4 {[%emt 0:00:38]} Kxc4 {[%emt 0:00:03]} 38. Kg2 {[%emt 0:00:36]} b5 {[%emt 0:00:01]} 39. Kf2 {[%emt 0:00:20]} b4 {[%emt 0:00:01]} 40. axb4 {[%emt 0:00:40]} a4 {[%emt 0:30:01]} 41. b5 {[%emt 0:30:47]} Kxb5 {[%emt 0:00:02]} 42. Ke2 {[%emt 0:00:19]} a3 {[%emt 0:00:01]} 1/2-1/2

[Event "9. Korbacher Open 2017"]
[Site "Korbach"]
[Date "2017.10.20"]
[Round "3"]
[White "Mohammadi, Sholeh"]
[Black "Achermann, Didier"]
[Result "0-1"]
[ECO "E67"]
[WhiteElo "1190"]
[BlackElo "1811"]
[Annotator "NA RC"]
[PlyCount "43"]
[EventDate "2017.??.??"]
[EventType "swiss"]
[EventCountry "GER"]
[SourceTitle "playchess.com"]
[Source "ChessBase"]
[SourceQuality "1"]
[TimeControl "40/5400+30:1800+30"]

1. c4 {[%emt 0:00:08]} Nf6 {[%emt 0:00:30]} 2. g3 {[%emt 0:00:40]} g6 {[%emt 0:00:20]} 3. Bg2 {[%emt 0:00:44]} Bg7 {[%emt 0:00:15]} 4. Nf3 {[%emt 0:03:48]} O-O {[%emt 0:00:30]} 5. d4 {[%emt 0:02:31]} d6 {[%emt 0:00:49]} 6. Nc3 {[%emt 0:00:56]} Nbd7 {[%emt 0:01:31]} 7. e4 {[%emt 0:00:38]} a6 {[%emt 0:02:46] E72: King's Indian: 4 e4 d6 5 g3} (7... e5 8. O-O c6 9. h3 Qb6 10. c5 dxc5 11. dxe5 Ne8 12. e6 fxe6 13. Ng5 Ne5 14. f4 Nf7 15. Nxf7 Bd4+ 16. Kh2 Rxf7 17. e5 Nc7 18. Ne4 Nd5 19. h4 Qd8 20. h5 Rg7 21. Ng5 Qe8 22. hxg6 Qxg6 23. Be4 Qe8 24. Bd3 Bd7 25. Kg2 Bxb2 26. Rb1 Bxc1 27. Qxc1 {1-0 (52) Lohmann,H (2527)-Muzyka,N (2479) ICCF email 2008}) 8. Be3 $146 {[%emt 0:04:03]} ({Predecessor:} 8. O-O c5 9. e5 Ne8 10. exd6 Nxd6 11. dxc5 Nxc5 12. Be3 Bxc3 13. bxc3 Qc7 14. Qd4 Ne6 15. Qh4 Nf5 16. Qe4 Nd6 17. Qh4 Nf5 18. Qe4 Nd6 {½-½ (18) Borsos,B (2278)-Szarvas,P (2173) Hungary 2015}) 8... c5 {[%emt 0:03:17]} 9. dxc5 {[%emt 0:06:17]} Nxc5 {[%emt 0:00:41]} 10. Nd4 {[%emt 0:00:26]} (10. Bxc5 $11 dxc5 11. e5) 10... Re8 {[%emt 0:05:23]} 11. O-O {[%emt 0:03:25]} Rb8 {[%emt 0:02:37]} 12. Nde2 {[%emt 0:06:19]} Ncd7 {[%emt 0:11:12]} 13. Rc1 {[%emt 0:03:32]} b5 {[%emt 0:01:48]} 14. cxb5 {[%emt 0:03:03]} axb5 {[%emt 0:00:34]} 15. b4 {[%emt 0:08:47]} (15. Nd4 $16 Bb7 16. Ndxb5) 15... Ne5 {[%emt 0:01:07]} 16. a4 {[%emt 0:04:07]} bxa4 {[%emt 0:01:03]} 17. Qxa4 {[%emt 0:02:23]} Nfd7 {[%emt 0:07:10]} 18. b5 {[%emt 0:00:11]} Nb6 {[%emt 0:02:47]} 19. Bxb6 {[%emt 0:06:51]} Qxb6 {[%emt 0:01:02]} 20. Rcd1 $2 {[%emt 0:08:58]} (20. Nd5 $16 {is forced if you want to stay better.} Qd8 21. Nd4) 20... Nd7 {[%emt 0:01:15]} 21. Rd3 $2 {[%emt 0:00:30]} (21. Nd5 $1 $11 Qd8 22. Nd4) 21... Nc5 $1 {[%emt 0:00:36]} 22. Rd5 $19 (22. Qc4 Nxd3 23. Qxd3) 0-1

[Event "9. Korbacher Open 2017"]
[Site "Korbach"]
[Date "2017.10.21"]
[Round "4"]
[White "Koellner, Ruben Gideon"]
[Black "Dudink, Bas"]
[Result "1-0"]
[ECO "D10"]
[WhiteElo "2148"]
[BlackElo "1951"]
[Annotator "NA"]
[PlyCount "119"]
[EventDate "2017.??.??"]
[EventType "swiss"]
[EventCountry "GER"]
[SourceTitle "playchess.com"]
[Source "ChessBase"]
[SourceQuality "1"]
[TimeControl "40/5400+30:1800+30"]

{[%evp 8,87,25,-16,28,1,0,0,4,0,-2,-14,0,-11,-2,-8,32767,-27,32767,-24,-32,-27,-18,-43,-8,-27,32767,32767,-42,32767,32767,32767,32767,32767,-35,32767,-44,32767,-40,-46,32767,-45,-47,-52,-40,-75,-64,-73,0,-62,0,-87,-60,-189,-40,-72,-30,-46,-28,32767,-32,32767,-22,-30,-29,-11,-19,-47,-25,-64,32767,32767,0,12,0,0,16,32767,32767,0,20,61]} 1. d4 {[%emt 0:00:00]} d5 {[%emt 0:00:08]} 2. c4 {[%emt 0:00:21]} c6 {[%emt 0:00:08]} 3. cxd5 {[%emt 0:00:06]} cxd5 {[%emt 0:00:07]} 4. Nc3 {[%emt 0:00:04]} Nf6 {[%emt 0:00:09]} 5. f3 {[%emt 0:00:03] LiveBook: 26 Games D10: Slav Defence: 3 cxd5 (without early Nf3) and 3 Nc3} (5. Bf4 Nc6 6. e3 Bf5 7. Qb3 Na5 8. Qa4+ Bd7 9. Qc2 e6 10. Bd3 Be7 11. Nf3 Nc6 12. a3 Nh5 13. Be5 f6 14. Bf4 Nxf4 15. exf4 g6 {½-½ (80) Rapport,R (2675)-Najer,E (2707) Tbilisi 2017}) 5... e6 {[%emt 0:06:17]} 6. Bg5 {[%emt 0:08:39]} Nc6 {[%emt 0:03:54]} 7. e3 {[%emt 0:00:48]} Be7 {[%emt 0:04:40]} 8. Bd3 {[%emt 0:01:55]} O-O {[%emt 0:00:23]} 9. Nge2 {[%emt 0:01:25]} h6 $146 {[%emt 0:05:51]} ({Predecessor:} 9... Ne8 10. Bxe7 Qxe7 11. Qd2 b6 12. O-O Nb4 {0-1 (25) Labahn,W (2179)-Jeske,E (2270) Germany 2005}) 10. Bh4 {[%emt 0:02:20]} b6 {[%emt 0:17:50]} 11. a3 {[%emt 0:02:22]} Na5 {[%emt 0:04:43]} 12. b4 {[%emt 0:11:07]} Nc4 {[%emt 0:00:57]} 13. Bxc4 {[%emt 0:03:04]} dxc4 {[%emt 0:00:07]} 14. O-O {[%emt 0:00:28]} a6 {[%emt 0:02:04]} 15. Bf2 {[%emt 0:03:05]} Qd7 {[%emt 0:04:20]} 16. e4 {[%emt 0:00:58]} Bb7 {[%emt 0:01:56]} 17. Qc2 {[%emt 0:01:53]} b5 {[%emt 0:00:52]} 18. Rfd1 {[%emt 0:00:52]} Rfd8 {[%emt 0:01:46]} 19. Be3 {[%emt 0:02:52]} Qc7 {[%emt 0:04:38]} 20. Kh1 {[%emt 0:06:01]} Bc6 {[%emt 0:01:40]} 21. Rab1 {[%emt 0:09:39]} a5 {[%emt 0:02:34]} 22. Qb2 {[%emt 0:02:15]} axb4 {[%emt 0:00:55]} 23. axb4 {[%emt 0:00:08]} Qb7 {[%emt 0:01:10]} 24. Ra1 {[%emt 0:05:14]} Rxa1 {[%emt 0:02:09]} 25. Rxa1 {[%emt 0:00:08]} Ra8 {[%emt 0:01:46]} 26. Rxa8+ {[%emt 0:00:52]} Qxa8 {[%emt 0:00:06]} 27. Kg1 $1 $11 {[%emt 0:00:50]} Ne8 {[%emt 0:02:14]} ({Black should try} 27... Kh7 $15) 28. Bf4 {[%emt 0:05:59]} (28. d5 $5 exd5 29. exd5 $15) 28... Nf6 {[%emt 0:07:28]} ({Better is} 28... Qb7 $15) 29. Bc7 {[%emt 0:06:27]} Qa7 {[%emt 0:00:34]} 30. Ba5 {[%emt 0:00:53] [#]} ({White should play} 30. Bg3 $15) 30... Nd7 {[%emt 0:03:23]} (30... e5 $1 $19 {[%cal Re5d4]} 31. Qd2 {[#]} Ng4 $1 {[%mdl 512]}) 31. Kf1 {[%emt 0:01:18]} Qb7 {[%emt 0:00:54]} 32. Qd2 {[%emt 0:01:08]} Nf6 {[%emt 0:04:49]} 33. Nf4 {[%emt 0:03:28]} g5 {[%emt 0:04:42]} 34. Nfe2 {[%emt 0:00:30]} Kg7 {[%emt 0:00:16]} 35. Qe3 {[%emt 0:02:25]} Qb8 {[%emt 0:02:36] [#]} 36. d5 $1 {[%emt 0:04:35]} Bd7 {[%emt 0:03:54]} 37. Kg1 {[%emt 0:02:36]} Bd6 {[%emt 0:01:37]} 38. g3 {[%emt 0:01:21]} exd5 {[%emt 0:01:43]} 39. exd5 {[%emt 0:01:30]} Qe8 {[%emt 0:01:46]} 40. Qxe8 {[%emt 0:01:36]} Bxe8 {[%emt 0:30:03]} 41. Kf2 {[%emt 0:33:09]} Kf8 {[%emt 0:00:00]} 42. Ke3 {[%emt 0:00:00]} Ke7 {[%emt 0:00:00]} 43. Kd4 {[%emt 0:00:00]} Nh5 {[%emt 0:00:00]} 44. Ne4 $14 {[%emt 0:00:00]} Bb8 {[%emt 0:00:00]} 45. Bb6 {[%emt 0:00:00]} f5 {[%emt 0:00:00]} 46. Bc5+ {[%emt 0:00:00]} Kd7 {[%emt 0:00:00]} 47. N4c3 {[%emt 0:00:00]} Kd8 {[%emt 0:00:00]} 48. d6 {[%emt 0:00:00]} Bc6 {[%emt 0:00:00]} 49. Ke5 {[%emt 0:00:00]} Ng7 {[%emt 0:00:00]} 50. Nd4 {[%emt 0:00:00]} Kd7 {[%emt 0:00:00]} 51. f4 {[%emt 0:00:00]} gxf4 {[%emt 0:07:07]} 52. gxf4 {[%emt 0:00:00]} h5 {[%emt 0:00:39]} 53. h4 {[%emt 0:00:00]} Be4 {[%emt 0:00:43]} 54. Ndxb5 {[%emt 0:04:33]} Bd3 {[%emt 0:00:11]} 55. Nd5 {[%emt 0:02:10]} Ne8 {[%emt 0:00:07]} 56. Nb6+ {[%emt 0:03:37]} Kc6 {[%emt 0:00:06]} 57. Nd4+ {[%emt 0:00:10]} Kb7 {[%emt 0:00:10]} 58. Nd7 {[%emt 0:00:15]} Ba7 {[%emt 0:01:55]} 59. Bxa7 {[%emt 0:00:18]} Kxa7 {[%emt 0:00:02]} 60. Nc5 {[%emt 0:00:35]} 1-0

[Event "9. Korbacher Open 2017"]
[Site "Korbach"]
[Date "2017.10.21"]
[Round "4"]
[White "Thomas, Ingo"]
[Black "Wachsmann, Dietmar"]
[Result "1/2-1/2"]
[ECO "C00"]
[WhiteElo "2129"]
[BlackElo "1930"]
[Annotator "NA"]
[PlyCount "72"]
[EventDate "2017.??.??"]
[EventType "swiss"]
[EventCountry "GER"]
[SourceTitle "playchess.com"]
[Source "ChessBase"]
[SourceQuality "1"]
[TimeControl "40/5400+30:1800+30"]

{[%evp 8,71,77,32767,47,32,52,45,45,39,50,32767,54,61,58,61,62,41,63,33,61,46,59,54,32767,37,61,41,92,29,27,32767,32767,32767,32767,32767,49,32767,29,-51,-54,-63,-45,-59,-18,32767,-17,-79,-51,-68,-54,-58,-51,-70,-60,32767,32767,32767,32767,32767,-97,-160,-91,-87,-89,-102]} 1. e4 {[%emt 0:00:00]} e6 {[%emt 0:00:04]} 2. d4 {[%emt 0:00:00]} c5 {[%emt 0:00:01]} 3. d5 {[%emt 0:02:53]} exd5 {[%emt 0:01:54]} 4. exd5 {[%emt 0:00:04]} d6 {[%emt 0:01:35]} 5. Nc3 {[%emt 0:00:26]} Nf6 {[%emt 0:01:57]} 6. Be2 {[%emt 0:03:04] A43: Schmid Benoni} (6. Nf3 g6 7. Be2 Bg7 8. O-O O-O 9. Bg5 h6 10. Bh4 Re8 11. Re1 a6 12. a4 Nbd7 13. Bf1 Rxe1 14. Qxe1 {½-½ (89) Lugovskoy,M (2474)-Papenin,N (2334) Sochi 2017}) 6... Nbd7 {[%emt 0:04:00]} 7. Nf3 {[%emt 0:00:28]} Be7 {[%emt 0:03:19]} 8. O-O {[%emt 0:00:32]} a6 {[%emt 0:00:56]} 9. a4 {[%emt 0:02:09]} b6 {[%emt 0:01:21]} 10. Re1 {[%emt 0:02:13]} O-O {[%emt 0:00:52]} 11. h3 {[%emt 0:00:58]} Bb7 {[%emt 0:02:04]} 12. Bf4 {[%emt 0:02:12]} Re8 {[%emt 0:05:36]} 13. Qd2 $146 {[%emt 0:00:58]} ({Predecessor:} 13. Bg3 Ne5 14. Nxe5 dxe5 15. Bxe5 Nxd5 16. Nxd5 Bxd5 {1-0 (24) Lin,K (1886)-Fouard,D Stillwater 2009}) 13... Qc7 {[%emt 0:03:30]} 14. Bc4 {[%emt 0:01:35]} Bf8 {[%emt 0:00:38]} 15. Qd3 {[%emt 0:05:23]} g6 {[%emt 0:07:36]} 16. Rxe8 {[%emt 0:02:15]} Nxe8 {[%emt 0:00:32]} 17. Re1 {[%emt 0:00:36]} Nef6 {[%emt 0:05:49]} (17... Ndf6 $11 {remains equal.}) 18. Qd2 {[%emt 0:13:40]} Re8 {[%emt 0:07:09]} 19. Rxe8 {[%emt 0:01:43]} Nxe8 {[%emt 0:00:02]} 20. Bh6 {[%emt 0:03:35]} Ng7 {[%emt 0:08:43]} 21. Ne4 {[%emt 0:06:33]} Be7 {[%emt 0:05:39]} 22. Bg5 {[%emt 0:03:03]} Bf8 {[%emt 0:08:34]} 23. Nf6+ {[%emt 0:09:49]} (23. Qd3 $14) 23... Nxf6 {[%emt 0:01:10]} 24. Bxf6 {[%emt 0:00:03]} Qd7 {[%emt 0:00:54]} 25. Bb3 {[%emt 0:05:52]} Qf5 {[%emt 0:05:32]} 26. Bg5 {[%emt 0:01:14]} b5 {[%emt 0:01:13]} 27. axb5 {[%emt 0:09:05]} (27. c4 $11 {keeps the balance.}) 27... axb5 {[%emt 0:01:28]} 28. c4 {[%emt 0:00:30]} bxc4 {[%emt 0:01:07]} 29. Bxc4 {[%emt 0:00:23]} Ne8 {[%emt 0:01:57]} 30. Bd8 {[%emt 0:02:22]} Nf6 {[%emt 0:02:44]} 31. Bxf6 {[%emt 0:03:21]} Qxf6 {[%emt 0:00:03]} 32. b3 {[%emt 0:00:44]} Qf5 {[%emt 0:03:44]} 33. Nh2 {[%emt 0:10:24]} Bg7 {[%emt 0:05:28]} 34. Ng4 {[%emt 0:01:21] [#]} (34. Qa5 $15) 34... h5 {[%emt 0:01:32]} (34... Qb1+ $142 $1 35. Kh2 h5) 35. Ne3 {[%emt 0:00:27]} Qb1+ {[%emt 0:03:11]} 36. Nf1 $17 {[%emt 0:02:03]} Qe4 {[%emt 0:02:31]} 1/2-1/2